lending/lending_fUSD_20250516
["ID","MTS","AMOUNT","RATE_DAILY","PERIOD"]
[361248817,1747392642222,-151.0,0.00016438,2]
[361248819,1747392642231,-400.0,0.00016438,2]
[361248821,1747392642241,-151.0,0.00016438,2]
[361248823,1747392642250,-151.0,0.00016438,2]
[361248825,1747392642259,-151.0,0.00016438,2]
[361248827,1747392642268,-151.0,0.00016438,2]
[361248829,1747392642277,-555.89,0.00016438,2]
[361248830,1747392642286,-151.0,0.00016438,2]
[361248832,1747392642296,-400.0,0.00016438,2]
[361248834,1747392642306,-151.0,0.00016438,2]
[361248836,1747392642315,-400.0,0.00016438,2]
[361248838,1747392642325,-400.0,0.00016438,2]
[361248840,1747392642334,-400.0,0.00016438,2]
[361248842,1747392642343,-151.0,0.00016438,2]
[361248844,1747392642352,-151.0,0.00016438,2]
[361248846,1747392642362,-151.0,0.00016438,2]
[361248848,1747392642371,-151.0,0.00016438,2]
[361248850,1747392642380,-400.0,0.00016438,2]
[361248852,1747392642389,-400.0,0.00016438,2]
[361248854,1747392642399,-400.0,0.00016438,2]
[361248856,1747392642408,-862.13,0.00016438,2]
[361248858,1747392642418,-400.0,0.00016438,2]
[361248860,1747392642427,-1068.16,0.00016438,2]
[361248862,1747392642436,-1099.92,0.00016438,2]
[361248864,1747392642446,-1020.49,0.00016438,2]
[361248866,1747392642456,-937.36,0.00016438,2]
[361248868,1747392642465,-452.7,0.00016438,2]
[361248870,1747392642475,-400.0,0.00016438,2]
[361248872,1747392642484,-400.0,0.00016438,2]
[361248874,1747392642494,-502.22,0.00016438,2]
[361248876,1747392642504,-400.0,0.00016438,2]
[361248878,1747392642514,-400.0,0.00016438,2]
[361248880,1747392642523,-400.0,0.00016438,2]
[361248882,1747392642532,-151.0,0.00016438,2]
[361248884,1747392642541,-151.0,0.00016438,2]
[361248886,1747392642552,-204.415071,0.00016438,2]
[361248888,1747392642561,-151.0,0.00016438,2]
[361248890,1747392642570,-446.09,0.00016438,2]
[361248892,1747392642582,-151.0,0.00016438,2]
[361248894,1747392642591,-151.0,0.00016438,2]
[361248896,1747392642601,-151.0,0.00016438,2]
[361248898,1747392642610,-151.0,0.00016438,2]
[361248900,1747392642620,-151.0,0.00016438,2]
[361248902,1747392642629,-400.0,0.00016438,2]
[361248904,1747392642638,-151.0,0.00016438,2]
[361248906,1747392642647,-221.491598,0.00016438,2]
[361248908,1747392642656,-436.76,0.00016438,2]
[361248910,1747392642666,-180.73110975,0.00016438,2]
[361248912,1747392642675,-400.0,0.00016438,2]
[361248914,1747392642684,-1221.93,0.00016438,2]
[361248916,1747392642693,-1227.46,0.00016438,2]
[361248918,1747392642702,-400.0,0.00016438,2]
[361248920,1747392642712,-151.0,0.00016438,2]
[361248922,1747392642721,-151.0,0.00016438,2]
[361248924,1747392642730,-184.375296,0.00016438,2]
[361248926,1747392642739,-400.0,0.00016438,2]
[361248928,1747392642748,-400.0,0.00016438,2]
[361248930,1747392642757,-400.0,0.00016438,2]
[361248932,1747392642766,-151.0,0.00016438,2]
[361248935,1747392642775,-400.0,0.00016438,2]
[361248937,1747392642784,-151.0,0.00016438,2]
[361248940,1747392642794,-151.0,0.00016438,2]
[361248942,1747392642803,-400.0,0.00016438,2]
[361248944,1747392642812,-151.0,0.00016438,2]
[361248946,1747392642821,-183.265843,0.00016438,2]
[361248948,1747392642830,-400.0,0.00016438,2]
[361248950,1747392642840,-400.0,0.00016438,2]
[361248952,1747392642849,-400.0,0.00016438,2]
[361248954,1747392642858,-560.13,0.00016438,2]
[361248956,1747392642867,-410.18,0.00016438,2]
[361248957,1747392642877,-400.0,0.00016438,2]
[361248959,1747392642886,-538.99610645,0.00016438,2]
[361248962,1747392642895,-400.0,0.00016438,2]
[361248966,1747392642905,-400.0,0.00016438,2]
[361248969,1747392642914,-1485.29,0.00016438,2]
[361248972,1747392642923,-427.38336336,0.00016438,2]
[361248975,1747392642932,-760.88,0.00016438,2]
[361248977,1747392642942,-400.0,0.00016438,2]
[361248979,1747392642954,-400.0,0.00016438,2]
[361248982,1747392642963,-400.0,0.00016438,2]
[361248985,1747392642972,-400.0,0.00016438,2]
[361248988,1747392642981,-505.9,0.00016438,2]
[361248991,1747392642991,-151.0,0.00016438,2]
[361248994,1747392643000,-400.0,0.00016438,2]
[361248998,1747392643010,-151.0,0.00016438,2]
[361249001,1747392643020,-400.0,0.00016438,2]
[361249005,1747392643031,-400.0,0.00016438,2]
[361249009,1747392643041,-151.0,0.00016438,2]
[361249013,1747392643051,-151.0,0.00016438,2]
[361249016,1747392643061,-400.0,0.00016438,2]
[361249019,1747392643071,-151.0,0.00016438,2]
[361249023,1747392643080,-1095.51,0.00016438,2]
[361249025,1747392643090,-400.0,0.00016438,2]
[361249027,1747392643100,-151.0,0.00016438,2]
[361249030,1747392643110,-151.0,0.00016438,2]
[361249033,1747392643119,-400.0,0.00016438,2]
[361249035,1747392643129,-151.0,0.00016438,2]
[361249037,1747392643138,-151.0,0.00016438,2]
[361249039,1747392643148,-400.0,0.00016438,2]
[361249041,1747392643158,-151.0,0.00016438,2]
[361249044,1747392643168,-1523.04,0.00016438,2]
[361249046,1747392643177,-400.0,0.00016438,2]
[361249048,1747392643187,-638.75,0.00016438,2]
[361249050,1747392643197,-151.0,0.00016438,2]
[361249052,1747392643206,-839.43,0.00016438,2]
[361249054,1747392643216,-215.243208,0.00016438,2]
[361249056,1747392643225,-400.0,0.00016438,2]
[361249058,1747392643234,-408.64676391,0.00016438,2]
[361249060,1747392643244,-400.0,0.00016438,2]
[361249062,1747392643253,-400.0,0.00016438,2]
[361249064,1747392643264,-413.70047332,0.00016438,2]
[361249066,1747392643273,-401.60865263,0.00016438,2]
[361249067,1747392643281,-400.0,0.00016438,2]
[361249070,1747392643291,-516.72,0.00016438,2]
[361249071,1747392643300,-400.0,0.00016438,2]
[361249073,1747392643310,-400.0,0.00016438,2]
[361249075,1747392643319,-500.0,0.00016438,2]
[361249077,1747392643328,-400.0,0.00016438,2]
[361249079,1747392643338,-1059.75,0.00016438,2]
[361249081,1747392643347,-400.0,0.00016438,2]
[361249083,1747392643356,-512.07512246,0.00016438,2]
[361249085,1747392643366,-506.93,0.00016438,2]
[361249087,1747392643375,-400.0,0.00016438,2]
[361249089,1747392643384,-400.0,0.00016438,2]
[361249091,1747392643393,-397.57625051,0.00016438,2]
[361249093,1747392643402,-400.0,0.00016438,2]
[361249095,1747392643411,-400.0,0.00016438,2]
[361249097,1747392643421,-982.04,0.00016438,2]
[361249099,1747392643430,-1078.38,0.00016438,2]
[361249101,1747392643439,-666.53,0.00016438,2]
[361249103,1747392643448,-400.0,0.00016438,2]
[361249105,1747392643458,-400.0,0.00016438,2]
[361249107,1747392643467,-400.0,0.00016438,2]
[361249109,1747392643476,-400.0,0.00016438,2]
[361249110,1747392643485,-400.0,0.00016438,2]
[361249112,1747392643494,-458.09,0.00016438,2]
[361249114,1747392643503,-524.42824834,0.00016438,2]
[361249116,1747392643512,-411.6,0.00016438,2]
[361249118,1747392643521,-400.0,0.00016438,2]
[361249120,1747392643530,-400.0,0.00016438,2]
[361249122,1747392643539,-151.0,0.00016438,2]
[361249124,1747392643550,-210.265362,0.00016438,2]
[361249126,1747392643559,-210.265362,0.00016438,2]
[361249128,1747392643570,-151.0,0.00016438,2]
[361249130,1747392643580,-210.265362,0.00016438,2]
[361249132,1747392643590,-400.0,0.00016438,2]
[361249134,1747392643599,-151.0,0.00016438,2]
[361249136,1747392643608,-400.0,0.00016438,2]
[361249138,1747392643617,-210.265362,0.00016438,2]
[361249140,1747392643627,-155.439043,0.00016438,2]
[361249142,1747392643636,-210.265362,0.00016438,2]
[361249144,1747392643646,-210.265362,0.00016438,2]
[361249146,1747392643655,-400.0,0.00016438,2]
[361249148,1747392643664,-210.265362,0.00016438,2]
[361249150,1747392643674,-400.0,0.00016438,2]
[361249152,1747392643682,-210.265362,0.00016438,2]
[361249154,1747392643691,-210.265362,0.00016438,2]
[361249156,1747392643701,-1095.0,0.00016438,2]
[361249158,1747392643710,-210.265362,0.00016438,2]
[361249160,1747392643719,-210.265362,0.00016438,2]
[361249162,1747392643728,-232.32085556,0.00016438,2]
[361249164,1747392643737,-640.83,0.00016438,2]
[361249166,1747392643746,-210.265362,0.00016438,2]
[361249168,1747392643755,-400.0,0.00016438,2]
[361249170,1747392643765,-400.0,0.00016438,2]
[361249172,1747392643774,-210.265362,0.00016438,2]
[361249174,1747392643783,-1487.05,0.00016438,2]
[361249176,1747392643792,-210.265362,0.00016438,2]
[361249177,1747392643803,-210.265362,0.00016438,2]
[361249179,1747392643811,-400.0,0.00016438,2]
[361249181,1747392643821,-554.13,0.00016438,2]
[361249183,1747392643829,-210.265362,0.00016438,2]
[361249185,1747392643838,-210.265362,0.00016438,2]
[361249187,1747392643847,-210.265362,0.00016438,2]
[361249189,1747392643857,-1171.28,0.00016438,2]
[361249191,1747392643867,-544.98,0.00016438,2]
[361249193,1747392643877,-400.0,0.00016438,2]
[361249195,1747392643886,-400.0,0.00016438,2]
[361249197,1747392643895,-400.0,0.00016438,2]
[361249199,1747392643905,-400.0,0.00016438,2]
[361249201,1747392643914,-400.0,0.00016438,2]
[361249203,1747392643923,-400.0,0.00016438,2]
[361249205,1747392643932,-655.59,0.00016438,2]
[361249207,1747392643942,-400.0,0.00016438,2]
[361249209,1747392643955,-400.0,0.00016438,2]
[361249211,1747392643964,-400.0,0.00016438,2]
[361249213,1747392643974,-400.0,0.00016438,2]
[361249215,1747392643983,-416.41,0.00016438,2]
[361249217,1747392643994,-151.716808,0.00016438,2]
[361249219,1747392644003,-605.18,0.00016438,2]
[361249221,1747392644013,-400.0,0.00016438,2]
[361249223,1747392644022,-697.52,0.00016438,2]
[361249225,1747392644034,-400.0,0.00016438,2]
[361249227,1747392644044,-151.0,0.00016438,2]
[361249230,1747392644054,-303.32362639,0.00016438,2]
[361249232,1747392644063,-151.0,0.00016438,2]
[361249234,1747392644073,-151.0,0.00016438,2]
[361249235,1747392644082,-204.65097,0.00016438,2]
[361249237,1747392644091,-400.0,0.00016438,2]
[361249240,1747392644101,-400.0,0.00016438,2]
[361249242,1747392644111,-400.0,0.00016438,2]
[361249244,1747392644120,-375.085757,0.00016438,2]
[361249246,1747392644130,-1509.11,0.00016438,2]
[361249247,1747392644140,-375.085757,0.00016438,2]
[361249250,1747392644149,-409.5,0.00016438,2]
[361249251,1747392644159,-375.085757,0.00016438,2]
[361249254,1747392644169,-375.085757,0.00016438,2]
[361249256,1747392644179,-375.085757,0.00016438,2]
[361249257,1747392644188,-1556.63,0.00016438,2]
[361249259,1747392644198,-375.085757,0.00016438,2]
[361249261,1747392644207,-375.085757,0.00016438,2]
[361249263,1747392644216,-400.0,0.00016438,2]
[361249265,1747392644225,-375.085757,0.00016438,2]
[361249267,1747392644234,-151.0,0.00016438,2]
[361249269,1747392644243,-375.085757,0.00016438,2]
[361249271,1747392644253,-151.0,0.00016438,2]
[361249273,1747392644262,-151.0,0.00016438,2]
[361249275,1747392644271,-375.085757,0.00016438,2]
[361249277,1747392644280,-151.0,0.00016438,2]
[361249279,1747392644289,-375.085757,0.00016438,2]
[361249281,1747392644299,-151.0,0.00016438,2]
[361249283,1747392644308,-1511.42,0.00016438,2]
[361249285,1747392644318,-375.085757,0.00016438,2]
[361249287,1747392644328,-400.0,0.00016438,2]
[361249289,1747392644337,-375.085757,0.00016438,2]
[361249291,1747392644347,-448.73,0.00016438,2]
[361249293,1747392644357,-375.085757,0.00016438,2]
[361249294,1747392644366,-151.0,0.00016438,2]
[361249295,1747392644376,-151.0,0.00016438,2]
[361249296,1747392644385,-151.0,0.00016438,2]
[361249297,1747392644395,-400.0,0.00016438,2]
[361249298,1747392644404,-375.085757,0.00016438,2]
[361249299,1747392644414,-151.0,0.00016438,2]
[361249300,1747392644423,-1028.4,0.00016438,2]
[361249301,1747392644432,-375.085757,0.00016438,2]
[361249302,1747392644442,-400.0,0.00016438,2]
[361249303,1747392644452,-151.0,0.00016438,2]
[361249304,1747392644461,-375.085757,0.00016438,2]
[361249305,1747392644471,-846.65,0.00016438,2]
[361249306,1747392644480,-151.0,0.00016438,2]
[361249308,1747392644489,-375.085753,0.00016438,2]
[361249310,1747392644498,-151.0,0.00016438,2]
[361249312,1747392644508,-151.0,0.00016438,2]
[361249314,1747392644518,-151.0,0.00016438,2]
[361249316,1747392644527,-400.0,0.00016438,2]
[361249318,1747392644536,-400.0,0.00016438,2]
[361249319,1747392644546,-400.0,0.00016438,2]
[361249322,1747392644556,-502.94435919,0.00016438,2]
[361249323,1747392644565,-400.0,0.00016438,2]
[361249325,1747392644575,-717.8,0.00016438,2]
[361249328,1747392644585,-681.33,0.00016438,2]
[361249330,1747392644596,-201.05219953,0.00016438,2]
[361249331,1747392644605,-400.0,0.00016438,2]
[361249333,1747392644615,-400.0,0.00016438,2]
[361249335,1747392644625,-504.1,0.00016438,2]
[361249337,1747392644634,-480.21,0.00016438,2]
[361249340,1747392644644,-400.0,0.00016438,2]
[361249342,1747392644657,-400.0,0.00016438,2]
[361249344,1747392644666,-981.57,0.00016438,2]
[361249346,1747392644675,-413.75,0.00016438,2]
[361249348,1747392644685,-400.0,0.00016438,2]
[361249350,1747392644694,-648.61,0.00016438,2]
[361249352,1747392644703,-151.0,0.00016438,2]
[361249354,1747392644712,-151.0,0.00016438,2]
[361249355,1747392644721,-639.78,0.00016438,2]
[361249358,1747392644731,-151.0,0.00016438,2]
[361249359,1747392644740,-403.54818783,0.00016438,2]
[361249361,1747392644750,-400.0,0.00016438,2]
[361249363,1747392644759,-400.0,0.00016438,2]
[361249365,1747392644768,-400.0,0.00016438,2]
[361249367,1747392644778,-852.82,0.00016438,2]
[361249370,1747392644787,-400.0,0.00016438,2]
[361249371,1747392644797,-400.0,0.00016438,2]
[361249373,1747392644807,-561.92,0.00016438,2]
[361249375,1747392644816,-400.0,0.00016438,2]
[361249377,1747392644826,-161.45217635,0.00016438,2]
[361249379,1747392644835,-150.269398,0.00016438,2]
[361249381,1747392644844,-941.92,0.00016438,2]
[361249383,1747392644854,-1576.73,0.00016438,2]
[361249385,1747392644863,-400.0,0.00016438,2]
[361249387,1747392644872,-400.0,0.00016438,2]
[361249389,1747392644882,-156.428519,0.00016438,2]
[361249391,1747392644892,-563.53,0.00016438,2]
[361249393,1747392644901,-439.76,0.00016438,2]
[361249395,1747392644910,-400.0,0.00016438,2]
[361249397,1747392644920,-400.0,0.00016438,2]
[361249399,1747392644930,-400.0,0.00016438,2]
[361249401,1747392644939,-529.78,0.00016438,2]
[361249403,1747392644950,-482.25,0.00016438,2]
[361249405,1747392644961,-400.0,0.00016438,2]
[361249407,1747392644971,-1138.43,0.00016438,2]
[361249409,1747392644981,-400.0,0.00016438,2]
[361249411,1747392644991,-997.09,0.00016438,2]
[361249413,1747392645000,-417.01,0.00016438,2]
[361249415,1747392645011,-400.44168708,0.00016438,2]
[361249417,1747392645020,-400.0,0.00016438,2]
[361249419,1747392645029,-400.0,0.00016438,2]
[361249421,1747392645039,-400.0,0.00016438,2]
[361249423,1747392645048,-400.5859974,0.00016438,2]
[361249425,1747392645058,-151.0,0.00016438,2]
[361249427,1747392645067,-400.0,0.00016438,2]
[361249429,1747392645076,-289.37899796,0.00016438,2]
[361249431,1747392645085,-151.0,0.00016438,2]
[361249433,1747392645094,-400.0,0.00016438,2]
[361249435,1747392645104,-151.0,0.00016438,2]
[361249437,1747392645113,-151.0,0.00016438,2]
[361249438,1747392645122,-400.0,0.00016438,2]
[361249440,1747392645131,-400.0,0.00016438,2]
[361249442,1747392645140,-518.68,0.00016438,2]
[361249444,1747392645149,-151.0,0.00016438,2]
[361249446,1747392645158,-400.0,0.00016438,2]
[361249448,1747392645167,-151.0,0.00016438,2]
[361249450,1747392645176,-151.0,0.00016438,2]
[361249452,1747392645185,-1308.52,0.00016438,2]
[361249454,1747392645194,-151.0,0.00016438,2]
[361249456,1747392645204,-151.0,0.00016438,2]
[361249458,1747392645213,-812.56,0.00016438,2]
[361249460,1747392645222,-400.0,0.00016438,2]
[361249462,1747392645231,-2259.2,0.00016438,2]
[361249464,1747392645240,-400.0,0.00016438,2]
[361249466,1747392645249,-452.59,0.00016438,2]
[361249468,1747392645258,-295.97781678,0.00016438,2]
[361249470,1747392645268,-500.0,0.00016438,2]
[361249472,1747392645277,-500.0,0.00016438,2]
[361249474,1747392645286,-375.31618012,0.00016438,2]
[361249476,1747392645295,-164.43192,0.00016438,2]
[361249478,1747392645304,-645.36,0.00016438,2]
[361249480,1747392645313,-985.89,0.00016438,2]
[361249482,1747392645322,-1447.69,0.00016438,2]
[361249484,1747392645331,-400.0,0.00016438,2]
[361249486,1747392645340,-400.0,0.00016438,2]
[361249488,1747392645349,-545.48,0.00016438,2]
[361249489,1747392645358,-400.0,0.00016438,2]
[361249491,1747392645367,-400.0,0.00016438,2]
[361249493,1747392645376,-400.0,0.00016438,2]
[361249495,1747392645386,-151.0,0.00016438,2]
[361249497,1747392645395,-151.0,0.00016438,2]
[361249499,1747392645404,-151.0,0.00016438,2]
[361249501,1747392645413,-1151.92,0.00016438,2]
[361249503,1747392645423,-177.667066,0.00016438,2]
[361249505,1747392645431,-790.29,0.00016438,2]
[361249507,1747392645441,-151.0,0.00016438,2]
[361249509,1747392645451,-404.85849734,0.00016438,2]
[361249511,1747392645460,-151.0,0.00016438,2]
[361249513,1747392645469,-400.0,0.00016438,2]
[361249515,1747392645479,-151.0,0.00016438,2]
[361249517,1747392645488,-154.046215,0.00016438,2]
[361249519,1747392645497,-1404.96,0.00016438,2]
[361249521,1747392645507,-400.0,0.00016438,2]
[361249523,1747392645517,-400.0,0.00016438,2]
[361249525,1747392645526,-400.0,0.00016438,2]
[361249527,1747392645535,-400.0,0.00016438,2]
[361249529,1747392645544,-400.0,0.00016438,2]
[361249531,1747392645554,-503.33,0.00016438,2]
[361249533,1747392645563,-400.0,0.00016438,2]
[361249535,1747392645572,-662.51,0.00016438,2]
[361249537,1747392645581,-702.74,0.00016438,2]
[361249539,1747392645590,-400.0,0.00016438,2]
[361249541,1747392645600,-400.0,0.00016438,2]
[361249543,1747392645609,-2454.71,0.00016438,2]
[361249545,1747392645619,-400.0,0.00016438,2]
[361249547,1747392645628,-400.0,0.00016438,2]
[361249549,1747392645638,-151.0,0.00016438,2]
[361249551,1747392645648,-151.0,0.00016438,2]
[361249553,1747392645659,-151.0,0.00016438,2]
[361249555,1747392645668,-151.0,0.00016438,2]
[361249557,1747392645678,-151.0,0.00016438,2]
[361249559,1747392645687,-732.42,0.00016438,2]
[361249561,1747392645696,-400.0,0.00016438,2]
[361249563,1747392645706,-400.0,0.00016438,2]
[361249565,1747392645715,-510.82226969,0.00016438,2]
[361249568,1747392645725,-665.49,0.00016438,2]
[361249570,1747392645735,-312.32920581,0.00016438,2]
[361249572,1747392645744,-165.37179,0.00016438,2]
[361249574,1747392645753,-400.0,0.00016438,2]
[361249576,1747392645763,-165.37179,0.00016438,2]
[361249578,1747392645773,-400.0,0.00016438,2]
[361249580,1747392645782,-165.37179,0.00016438,2]
[361249582,1747392645791,-165.37179,0.00016438,2]
[361249584,1747392645802,-400.0,0.00016438,2]
[361249586,1747392645811,-165.37179,0.00016438,2]
[361249588,1747392645821,-165.37179,0.00016438,2]
[361249590,1747392645830,-400.0,0.00016438,2]
[361249592,1747392645840,-165.37179,0.00016438,2]
[361249594,1747392645850,-165.37179,0.00016438,2]
[361249596,1747392645859,-165.37179,0.00016438,2]
[361249599,1747392645868,-165.37179,0.00016438,2]
[361249601,1747392645878,-400.0,0.00016438,2]
[361249603,1747392645888,-165.37179,0.00016438,2]
[361249605,1747392645897,-165.37179,0.00016438,2]
[361249607,1747392645906,-165.37179,0.00016438,2]
[361249609,1747392645915,-598.95,0.00016438,2]
[361249611,1747392645925,-204.153958,0.00016438,2]
[361249613,1747392645935,-165.37179,0.00016438,2]
[361249615,1747392645946,-204.153958,0.00016438,2]
[361249617,1747392645957,-204.153958,0.00016438,2]
[361249619,1747392645966,-171.148701,0.00016438,2]
[361249621,1747392645975,-165.37179,0.00016438,2]
[361249623,1747392645985,-204.153958,0.00016438,2]
[361249625,1747392645997,-400.0,0.00016438,2]
[361249627,1747392646006,-165.37179,0.00016438,2]
[361249629,1747392646016,-204.153958,0.00016438,2]
[361249631,1747392646028,-204.153958,0.00016438,2]
[361249633,1747392646040,-165.37179,0.00016438,2]
[361249635,1747392646049,-204.153958,0.00016438,2]
[361249637,1747392646059,-569.01,0.00016438,2]
[361249639,1747392646069,-204.153958,0.00016438,2]
[361249641,1747392646079,-165.37179,0.00016438,2]
[361249643,1747392646089,-400.0,0.00016438,2]
[361249645,1747392646099,-1262.39,0.00016438,2]
[361249648,1747392646109,-204.153958,0.00016438,2]
[361249650,1747392646118,-970.35,0.00016438,2]
[361249652,1747392646128,-204.153958,0.00016438,2]
[361249654,1747392646137,-204.153958,0.00016438,2]
[361249655,1747392646146,-505.88,0.00016438,2]
[361249657,1747392646155,-204.153958,0.00016438,2]
[361249659,1747392646165,-1207.87,0.00016438,2]
[361249661,1747392646175,-204.153958,0.00016438,2]
[361249663,1747392646184,-204.153958,0.00016438,2]
[361249666,1747392646194,-204.153958,0.00016438,2]
[361249667,1747392646205,-204.153958,0.00016438,2]
[361249670,1747392646215,-204.153958,0.00016438,2]
[361249672,1747392646224,-79.08582653,0.00016438,2]
[361249720,1747392646977,-320.91417347,0.00016438,2]
[361249721,1747392646988,-204.153961,0.00016438,2]
[361249722,1747392646999,-364.08042539,0.00016438,2]
[361249723,1747392647305,-194.97640277,0.00016438,2]
[361249724,1747392647348,-205.02359723,0.00016438,2]
[361249725,1747392647358,-514.82,0.00016438,2]
[361249726,1747392647367,-573.6,0.00016438,2]
[361249727,1747392647377,-15.02546959,0.00016438,2]
[361249744,1747392649287,-288.17883546,0.00013839,2]
[361249745,1747392649300,-6160.51785956,0.00013839,2]
[361249746,1747392649311,-864.16333068,0.00014585,2]
[361249747,1747392649321,-151.0,0.00016133,2]
[361249748,1747392649330,-2521.055022,0.00016133,2]
[361249749,1747392649339,-151.0,0.00016436,2]
[361249750,1747392649348,-885.9774687,0.00016437,2]
[361249751,1747392649875,-864.16333068,0.00015571,2]
[361249752,1747392649885,-1635.0775533,0.00016437,2]
[361249753,1747392649895,-312669.12836348,0.00016438,2]
[361249754,1747392650014,-1549.25055747,0.00016438,2]
[361249755,1747392650025,-504693.266,0.00016438,2]
[361249756,1747392651166,-563.22,0.00014147,2]
[361249757,1747392651182,-5885.47669498,0.00014147,2]
[361249758,1747392651191,-151.0,0.00014823,2]
[361249759,1747392651201,-151.0,0.00016133,2]
[361249760,1747392651210,-47612.8371114,0.00016438,2]
[361249761,1747392651220,-781.07453041,0.00016438,2]
[361249762,1747392651229,-534.16,0.00016438,2]
[361249763,1747392651240,-456.5083613,0.00016438,2]
[361249764,1747392651250,-400.0,0.00016438,2]
[361249765,1747392651259,-400.0,0.00016438,2]
[361249766,1747392651268,-400.0,0.00016438,2]
[361249767,1747392651277,-400.0,0.00016438,2]
[361249768,1747392651286,-400.0,0.00016438,2]
[361249769,1747392651296,-400.0,0.00016438,2]
[361249770,1747392651308,-400.0,0.00016438,2]
[361249771,1747392651318,-400.0,0.00016438,2]
[361249772,1747392651327,-400.0,0.00016438,2]
[361249773,1747392651336,-400.0,0.00016438,2]
[361249774,1747392651346,-400.0,0.00016438,2]
[361249775,1747392651355,-400.0,0.00016438,2]
[361249776,1747392651364,-400.0,0.00016438,2]
[361249777,1747392651373,-400.0,0.00016438,2]
[361249778,1747392651382,-447.23,0.00016438,2]
[361249779,1747392651392,-1709.75,0.00016438,2]
[361249780,1747392651401,-400.0,0.00016438,2]
[361249781,1747392651410,-400.0,0.00016438,2]
[361249782,1747392651419,-814.9,0.00016438,2]
[361249783,1747392651429,-2098.47,0.00016438,2]
[361249784,1747392651438,-1059.73,0.00016438,2]
[361249785,1747392651448,-1316.02,0.00016438,2]
[361249786,1747392651458,-400.0,0.00016438,2]
[361249787,1747392651467,-400.0,0.00016438,2]
[361249788,1747392651476,-225.7208607,0.00016438,2]
[361249789,1747392651485,-543.83273727,0.00016438,2]
[361249790,1747392651494,-499.1,0.00016438,2]
[361249791,1747392651504,-455.07,0.00016438,2]
[361249792,1747392651514,-532.54,0.00016438,2]
[361249793,1747392651523,-400.0,0.00016438,2]
[361249794,1747392651532,-151.0,0.00016438,2]
[361249795,1747392651541,-400.0,0.00016438,2]
[361249796,1747392651551,-151.0,0.00016438,2]
[361249797,1747392651564,-400.0,0.00016438,2]
[361249798,1747392651573,-151.0,0.00016438,2]
[361249799,1747392651582,-151.0,0.00016438,2]
[361249800,1747392651591,-400.0,0.00016438,2]
[361249801,1747392651601,-151.0,0.00016438,2]
[361249802,1747392651610,-400.0,0.00016438,2]
[361249803,1747392651621,-400.0,0.00016438,2]
[361249804,1747392651631,-151.0,0.00016438,2]
[361249805,1747392651640,-151.0,0.00016438,2]
[361249806,1747392651650,-151.0,0.00016438,2]
[361249807,1747392651659,-151.0,0.00016438,2]
[361249808,1747392651668,-151.0,0.00016438,2]
[361249809,1747392651678,-151.0,0.00016438,2]
[361249810,1747392651687,-196.105424,0.00016438,2]
[361249811,1747392651697,-151.0,0.00016438,2]
[361249812,1747392651706,-151.0,0.00016438,2]